Cogmind - Beta 15 @@@ ROGUE MODE // 2025.05.16 @ 19:32:17 Player: emory Result: Destroyed by G-34 Mercenary with Small Laser Performance ------------- Evolutions (0) 0 Regions Visited (1) 200 Robots Destroyed (6) 30 Value Destroyed (202) 202 Prototype IDs (0) 0 Alien Tech Used (0) 0 Bonus (0) 0 TOTAL SCORE: 432 Bonus ------- None Cogmind --------- Core Integrity 0/250 Matter 300/300 Energy 97/100 System Corruption 0% Temperature Warm (178) Movement Core (1450) Ox28 Location -10/Materials Parts ------- > --- POWER (1) -------- (None) > --- PROPULSION (2) --- (None) > --- UTILITY (2) ------ Small Storage Unit Huge Storage Unit > --- WEAPON (2) ------- Small Laser > --- INVENTORY (25) --- Ion Engine Light Ion Engine Light Treads Light Treads Aluminum Leg Aluminum Leg Aluminum Leg Heat Sink Large Storage Unit Peak State ------------ > --- POWER ------------ Light Ion Engine > --- PROPULSION ------- Wheel Compact Wheel > --- UTILITY ---------- Small Storage Unit Huge Storage Unit > --- WEAPON ----------- EM Pulse Gun Light Assault Rifle > --- INVENTORY -------- Light Ion Engine Light Treads Light Treads Aluminum Leg Aluminum Leg Large Storage Unit Small Laser [Rating: 7] Favorites ----------- Power Light Ion Engine Engine Light Ion Engine Propulsion Compact Wheel Wheel Compact Wheel Utility Small Storage Unit Storage Small Storage Unit Weapon Light Assault Rifle Energy Gun EM Pulse Gun Ballistic Gun Light Assault Rifle Build | -11 -10 ------- Run | Yrd Mat Slots Evolved . | . . Power . | . . Propulsion . | . . Utility . | . . Weapon . | . . Parts Attached 9 | 6 3 Power 1 | 1 . Engine 1 | 1 . Core . | . . Reactor . | . . Propulsion 3 | 2 1 Treads . | . . Leg . | . . Wheel 3 | 2 1 Hover . | . . Flight . | . . Utility 2 | 1 1 Device . | . . Storage 2 | 1 1 Processor . | . . Hackware . | . . Protection . | . . Artifact . | . . Weapon 3 | 2 1 Energy Gun 2 | 1 1 Energy Cannon . | . . Ballistic Gun 1 | 1 . Ballistic Cannon . | . . Launcher . | . . Special Weapon . | . . Impact Weapon . | . . Slashing Weapon . | . . Piercing Weapon . | . . Special Melee Weapon . | . . Unidentified Prototypes . | . . Parts Lost 6 | . 6 Power 1 | . 1 Propulsion 3 | . 3 Utility . | . . Weapon 2 | . 2 Highest Loss Streak 4 | . 4 To Critical Strikes . | . . Average Backups 6 | 4 7 Power 1 | . 1 Propulsion 4 | 2 4 Utility . | . 1 Weapon . | 1 . Tool/Special . | . . Unused Backups 9 | . 9 Power 2 | . 2 Propulsion 5 | . 5 Utility 2 | . 2 Weapon . | . . Tool/Special . | . . Average Slot Usage (%) 91 | . 91 Engine 14 | . 14 Wheel 26 | . 26 Storage 25 | . 25 Energy Gun 10 | . 10 Ballistic Gun 13 | . 13 Peak Build Rating 7 | 6 7 Average Rating 5 | 3 6 On Entrance 3 | . 6 Naked Turns . | . . Heaviest Build 91 | 11 91 Greatest Support 32 | 26 32 Greatest Overweight (x) 5 | . 5 Average Overweight (x) 1 | . 1 Largest Inventory Capacity 25 | 8 25 Average Capacity 19 | 6 21 Most Carried 9 | 8 9 Average Carried 6 | 4 7 Final Capacity 25 | 8 25 Final Carried 9 | 6 9 Class Distribution -------------------- 100% | Mutant Dominant Class ---------------- Mutant | -10/Materials Resources | -11 -10 ----------- Run | Yrd Mat Matter Collected 316 | 240 76 Remotely . | . . Salvage Created 288 | . 288 Parts 14 | . 14 Haulers Intercepted . | . . Recyclers Shooed . | . . Parts Field Recycled . | . . Retrieved Matter . | . . Parts Self-Destructed . | . . Prevented . | . . Kills | -11 -10 ------- Run | Yrd Mat Combat Hostiles Destroyed 5 | . 5 Guns 5 | . 5 Classes Destroyed 2 | . 2 Recycler 1 | . 1 Grunt 5 | . 5 Best Kill Streak 3 | . 3 Combat Bots Only 2 | . 2 Max Kills in Single Turn 1 | . 1 Gunslinging . | . . Exploded . | . . Melee . | . . Uniques/NPCs Destroyed . | . . Combat | -11 -10 -------- Run | Yrd Mat Hostile Shots Fired 70 | . 70 Missed 20 | . 20 Hits 50 | . 50 Projectile 50 | . 50 Critical Strikes 2 | . 2 Damage Taken 711 | . 711 Core 251 | . 251 Absorbed by Shields . | . . Core Remaining (%) 100 | 100 . Volleys Fired 52 | . 52 Largest 2 | . 2 Hottest 60 | . 60 Shots Fired 73 | . 73 Gun 73 | . 73 Cannon . | . . Launcher . | . . Special . | . . Kinetic 43 | . 43 Thermal 22 | . 22 Explosive . | . . Electromagnetic 8 | . 8 Robot Hit Streak 10 | . 10 Robot Miss Streak 3 | . 3 Penetration Max . | . . Secondary Targets . | . . Shots Hit Robots 47 | . 47 Core Hits 19 | . 19 Critical Kills 2 | . 2 Critical Parts Destroyed . | . . Critical Strikes 2 | . 2 Destroy 2 | . 2 Melee Attacks . | . . Impact . | . . Slashing . | . . Piercing . | . . Sneak Attacks . | . . Combat Hostiles . | . . Follow-up Attacks . | . . Damage Inflicted 443 | . 443 Guns 432 | . 432 Cannons . | . . Explosions . | . . Melee . | . . Ramming 11 | . 11 Kinetic 261 | . 261 Thermal 118 | . 118 Explosive . | . . Electromagnetic 53 | . 53 Impact . | . . Slashing . | . . Piercing . | . . Highest Corruption . | . . Average Corruption . | . . Corruption Purged . | . . Corruption Blocked . | . . Overload Shots . | . . Overflow Damage . | . . Projectiles . | . . Explosions . | . . Melee . | . . Knockbacks . | . . Impact . | . . Kinetic . | . . Secondary . | . . Self-Inflicted Damage 5 | . 5 Shots . | . . Rammed 1 | . 1 Targets Rammed 1 | . 1 Kicked . | . . Crushed . | . . Highest Temperature 173 | . 173 Average Temperature 48 | . 48 Received Heat Transfer 429 | . 429 Siege Activations . | . . Martial Activations . | . . Shielding Activations . | . . Robots Disrupted . | . . Combat Hostiles . | . . Robots Corrupted . | . . Combat Hostiles . | . . Parts Fried . | . . Impact Corruptions . | . . Robots Melted . | . . Combat Hostiles . | . . Parts Melted . | . . Heat Transferred 275 | . 275 Parts Sabotaged . | . . Parts Stolen . | . . Parts Stripped . | . . Power Chain Reactions . | . . Alert | -11 -10 ------- Run | Yrd Mat Maximum Alert Level . | . . Low Security (%) 100 | 100 100 Level 1 . | . . Level 2 . | . . Level 3 . | . . Level 4 . | . . Level 5 . | . . High Security . | . . Max Security . | . . Peak Influence 50 | . 50 Initial . | . . Average 14 | . 16 Influence Increases 150 | . 150 Destroy 0b10 Robot/C 100 | . 100 Destroy 0b10 Robot/NC 5 | . 5 Destroy Leader 30 | . 30 Lose Combat Pursuer 15 | . 15 Influence Decreases 150 | . 150 Time Decay 115 | . 115 Lost Part 35 | . 35 Squads Dispatched 1 | . 1 Investigation . | . . Extermination . | . . Reinforcement 1 | . 1 Assault . | . . Garrison . | . . Intercept . | . . Searches Triggered . | . . Construction Impeded . | . . Haulers Reinforced . | . . Active Scanning Responses . | . . Cargo Convoy Interrupts . | . . Stealth | -11 -10 --------- Run | Yrd Mat Distress Signals 1 | . 1 Communications Jammed . | . . Distress Signals . | . . Times Spotted 13 | . 13 Peak Tracking Total 4 | . 4 Tactical Retreats 1 | . 1 Traps | -11 -10 ------- Run | Yrd Mat Traps Triggered . | . . Indirectly . | . . Trap Hack Attempts . | . . Triggered . | . . Disarmed . | . . Reprogrammed . | . . Reused . | . . Traps Extracted . | . . Installed . | . . Triggered . | . . Machines | -11 -10 ---------- Run | Yrd Mat Machines Disabled . | . . Max in Single Turn . | . . Machines Repaired . | . . Machines Dismantled . | . . Machines Sabotaged . | . . Overloaded Fab Kills . | . . Hacking | -11 -10 --------- Run | Yrd Mat Machines Accessed . | . . Terminals . | . . Fabricators . | . . Repair Stations . | . . Recycling Units . | . . Scanalyzers . | . . Garrison Access . | . . Total Hacks . | . . Successful . | . . Failed . | . . Catastrophic . | . . Database Lockouts . | . . Manual . | . . Terminals . | . . Fabricators . | . . Repair Stations . | . . Recycling Units . | . . Scanalyzers . | . . Garrison Access . | . . Terminal Hacks . | . . Fabricator Hacks . | . . Repair Station Hacks . | . . Recycling Unit Hacks . | . . Scanalyzer . | . . Garrison Access Hacks . | . . Unauthorized Hacks . | . . Terminals . | . . Fabricators . | . . Repair Stations . | . . Recycling Units . | . . Scanalyzers . | . . Garrison Access . | . . Data Cores Recovered . | . . Used . | . . Hacking Detections . | . . Full Trace Events . | . . Feedback Events . | . . Feedback Blocked . | . . Robot Schematics Acquired . | . . Robots Built . | . . Authchips . | . . Time . | . . Total Robot Build Rating . | . . Part Schematics Acquired . | . . Parts Built . | . . Authchips . | . . Time . | . . Total Part Build Rating . | . . Parts Repaired . | . . Time . | . . Parts Recycled . | . . Recycled Matter . | . . Retrieved Matter . | . . Retrieved Components . | . . Parts Scanalyzed . | . . Part Schematics Acquired . | . . Parts Damaged . | . . Bothacking | -11 -10 ------------ Run | Yrd Mat Used RIF Installer . | . . Robots Hacked . | . . Non-combat . | . . Combat . | . . Robot Hacks Applied . | . . Relay Couplers Released . | . . Fabnet Peak Effective % . | . . Robots Rewired . | . . Allies Hacked . | . . Hacks Repelled . | . . Allies | -11 -10 -------- Run | Yrd Mat Total Allies . | . . Largest Group . | . . Highest-Rated Group . | . . Highest-Rated Ally . | . . Total Orders . | . . Ally Attacks . | . . Total Damage . | . . Kills . | . . Allies Corrupted . | . . Allies Melted . | . . Intel | -11 -10 ------- Run | Yrd Mat Active Infowar (turns) . | . . Robot Analysis Total . | . . Derelict Logs Recovered . | . . Drone Launches . | . . Drone Recoveries . | . . Exploration | -11 -10 ------------- Run | Yrd Mat Turns Passed 424 | 58 366 Spaces Moved 224 | 51 173 Core 14 | 14 . Treads . | . . Legs . | . . Wheels 210 | 37 173 Hover . | . . Flight . | . . Fastest Speed 50 | 50 90 Average Speed 107 | 79 115 Slowest Speed 175 | 90 175 Overloaded Moves . | . . Propulsion Burnouts . | . . Robots Hopped . | . . Potential Cave-ins . | . . Cave-ins Triggered . | . . Exploration Rate (%) 15 | 4 27 Regions Visited 1 Branch Regions . Pre-discovered Areas . | . . Known Exits Taken . | . . Unknown Exits Taken 1 | 1 . Scrap Searched . | . . Spaces Dug . | . . Terrain Destroyed . | . . Melee . | . . Projectile . | . . AOE . | . . Terrain Rammed . | . . Walls Destroyed . | . . Machines Disabled . | . . Actions | -11 -10 --------- Run | Yrd Mat Total 343 | 68 275 Wait 40 | . 40 Move 223 | 50 173 Hop . | . . Pick Up 18 | 12 6 Fast Attach . | . . Attach 9 | 6 3 Detach . | . . Swap . | . . Drop . | . . Fire 52 | . 52 Melee . | . . Ram 1 | . 1 Kick . | . . Crush . | . . Escape Stasis . | . . Rewire . | . . Trap . | . . Miscellaneous . | . . Route ------- -11/Scrapyard -10/Materials (discovered 1 exit: [*Min]) History --------- Turn | Location | Event 16 | -11/Scrapyard | Discovered new exit (range 16) 59 | -11/Scrapyard | Entered Materials 227 | -10/Materials | Discovered new exit (range 13) 268 | -10/Materials | Core integrity fell below 50% 302 | -10/Materials | Build established: Mutant 415 | -10/Materials | Core integrity fell below 20% 425 | -10/Materials | Destroyed by G-34 Mercenary with Small Laser Last Messages --------------- (Destroy). 00291_ G-34 Mercenary destroyed. 00295_ Acquired 52 matter. 00296_ Acquired 19 matter. 00355_ K-01 Serf collects debris. 00359_ G-34 Mercenary destroyed. 00365_ Acquired Ion Engine. 00365_ K-01 Serf collects debris. 00366_ Acquired 5 matter. 00368_ Acquired Heat Sink. 00369_ K-01 Serf collects debris. 00372_ Acquired Aluminum Leg. 00374_ K-01 Serf collects debris. 00402_ Critical hit (Burn: +37). 00403_ K-01 Serf cleans the Nuclear Reactor. 00406_ Lgt. Assault Rifle destroyed. 00408_ Com. Wheel destroyed. 00414_ Critical hit (Burn: +37). 00420_ Lgt. Ion Engine destroyed. 00421_ Com. Wheel destroyed. Map ----- +----------------------------------------------------+ | | | | | | | | | | | | | | | ??????????????????###########????????????????? | | ??????????????????# #????????????????? | | ??????????????????# T #????????????????? | | ??????????????????# #????????????????? | | ??????????????????# #????????????????? | | ??????????????????#####+#####????????????????? | | ??????????????????????# ########?????????????? | | ??????????????????????# # #?????????????? | | ??????????????????????# # """ #?????????????? | | ??????????????????????# # """ #?????????????? | | ??????????????????????# # """ #?????????????? | | ????????????????????### # #####?????????? | | ????????????????????# # """ # #?????????? | | ????????????????????# % + """ # #?????????? | | ????????????????????# #g""" # #?????????? | | ????????????????????# # # #?????????? | | ????????????????????# # """ # #?????????? | | ????????????????????# # "R # #?????????? | | ???????? ###/####### #@""" # #?????????? | | ??????# g # ########### | | ??????# ######## # # | | ??????# k %#??????# # # | | ???????###############+##??????# # """"""" # | | ??????????????# == ######## # """"""" # | | ??????????????# ## # + """"""" # | | ??????????????# ## # # """"""" # | | ??????????????# ##! ### # """"""" # | | ??????????????# """ "" ## " #?# # # | | ??????????????# """ """ ## T #?# ########### | | ??????????????# """ """ ## " #?# #?# # | | ??????????????# ## #?# #?# """ # | | ????????###########+#########+#### ### """ # | | ???? * # """ # | | ???????????## !% + # | | ????????????# *= # # | | ????????????# #############/##### # # | | ????????????# ????????# !% # # " " # | | ?????????? ?????????# %+!# "T" # | | ????????< ?????????# # # """ # | | ??????? ??????????# "" """ # # # | | ??????? ##???????????# """ """ # ######### | | ???????#####?????????????# """ """ # #???????? | | ?????????????????????????# # ????????? | +----------------------------------------------------+ Best States ------------- Heat Dissipation 25 Energy Generation 10 Energy Capacity 125 Matter Stores 300 Matter Capacity 300 Sight Range 16 Terrain Scan Density 10 Evasion (%) 50 Item Schematics ----------------- None Robot Schematics ------------------ None Fabricated ------------ Nothing Repaired ---------- Nothing Alien Tech Used ----------------- None Achievements -------------- None Challenges ------------ None Game ------ Seed BombLauncherNeutralizer Manual? 0 Play Time 00:10:56 Cumulative 29.5 hours Start 2025.05.16 @ 19:16:02 End 2025.05.16 @ 19:32:17 Sessions 1 Manual Loads 0 Difficulty Rogue Special Mode None Game No. 47 Rogue 47 Adventurer 0 Explorer 0 Win Type - Total 0 Types 0/0/0/0/0/0/0/0/0/0 Lore% 14 Gallery% 20 Achievement% 21 Wizard Run 0 Options --------- Layout 2 ASCII 1 Keyboard 0 Movement Mouse Keybinds 0 Fullscreen 1 Font 16/SmallcapsGlow Map View 50x44 Zoom Use 0% Tactical HUD 1 Map Filters NONE Filters NONE Steam SD RUN: 89a7262c-9509-4538-9d6d-c6cefc51c593